[Event "44th Chess Olympiad Women 2022"]
[Site "Chennai"]
[Date "2022.08.05"]
[Round "7.28"]
[White "Frayna, Janelle Mae"]
[Black "Cordero, Daniela"]
[Result "1-0"]
[WhiteElo "2224"]
[BlackElo "2005"]
[Annotator "ChessBase"]
[PlyCount "81"]
[EventDate "2022.??.??"]
[TimeControl "60"]

1. e4 {[%emt 0:00:11]} e6 {[%emt 0:00:11]} 2. d4 {[%emt 0:00:31]} d5 {[%emt 0:
00:00]} 3. Nd2 {[%emt 0:00:05]} a6 {[%emt 0:00:13]} 4. Ngf3 {[%emt 0:00:36]} c5
{[%emt 0:01:29]} 5. dxc5 {[%emt 0:03:46]} Bxc5 {[%emt 0:03:51]} 6. Bd3 {
[%emt 0:00:05]} Nc6 {[%emt 0:00:42]} 7. a3 {[%emt 0:04:26]} Nf6 {[%emt 0:02:36]
} 8. Qe2 {[%emt 0:00:21]} b5 {[%emt 0:12:21]} 9. O-O {[%emt 0:01:41]} Bb7 {
[%emt 0:01:49]} 10. e5 {[%emt 0:00:36]} Nd7 {[%emt 0:01:11]} 11. Nb3 {[%emt 0:
00:00]} Be7 {[%emt 0:00:17]} 12. Bf4 {[%emt 0:01:51]} g5 {[%emt 0:08:38]} 13.
Bg3 {[%emt 0:00:21]} h5 {[%emt 0:00:36]} 14. h3 {[%emt 0:00:04]} h4 {[%emt 0:
00:00]} 15. Bh2 {[%emt 0:00:09]} Qc7 {[%emt 0:11:57]} 16. Rfe1 {[%emt 0:08:00]}
g4 {[%emt 0:03:29]} 17. hxg4 {[%emt 0:02:58]} h3 {[%emt 0:00:06]} 18. Nfd4 {
[%emt 0:13:34]} hxg2 {[%emt 0:03:01]} 19. Bg3 {[%emt 0:04:13]} Nc5 {[%emt 0:00:
00]} 20. Kxg2 {[%emt 0:02:46]} Nxd3 {[%emt 0:07:26]} 21. Qxd3 {[%emt 0:02:08]}
O-O-O {[%emt 0:10:30]} 22. f4 {[%emt 0:00:28]} Bh4 {[%emt 0:01:51]} 23. Rh1 {
[%emt 0:05:13]} Bxg3 {[%emt 0:00:12]} 24. Qxg3 {[%emt 0:00:05]} Qb6 {[%emt 0:
00:00]} 25. c3 {[%emt 0:01:42]} a5 {[%emt 0:03:04]} 26. Rxh8 {[%emt 0:05:10]}
Rxh8 {[%emt 0:00:01]} 27. Rd1 {[%emt 0:01:31]} b4 {[%emt 0:02:26]} 28. cxb4 {
[%emt 0:01:53]} axb4 {[%emt 0:00:19]} 29. axb4 {[%emt 0:04:32]} Nxd4 {[%emt 0:
00:00]} 30. Nxd4 {[%emt 0:04:21]} Kd7 {[%emt 0:00:10]} 31. b5 {[%emt 0:02:42]}
Rc8 {[%emt 0:01:02]} 32. f5 {[%emt 0:02:44]} Rc4 {[%emt 0:00:15]} 33. fxe6+ {
[%emt 0:01:51]} fxe6 {[%emt 0:00:12]} 34. Qf2 {[%emt 0:00:38]} Qc5 {[%emt 0:00:
00]} 35. b3 {[%emt 0:02:19]} Rc3 {[%emt 0:00:22]} 36. Rh1 {[%emt 0:02:46]} Qe7
{[%emt 0:00:36]} 37. Qf6 {[%emt 0:00:20]} Bc8 {[%emt 0:00:26]} 38. Nc6 {
[%emt 0:04:10]} Rc2+ {[%emt 0:00:05]} 39. Kg3 {[%emt 0:00:06]} Rc3+ {[%emt 0:
00:00]} 40. Kf4 {[%emt 0:00:36]} Qxf6+ {[%emt 0:01:12]} 41. exf6 {[%emt 0:00:
00]} 1-0

[Event "44th Chess Olympiad Women 2022"]
[Site "Chennai"]
[Date "2022.08.05"]
[Round "7.28"]
[White "Monroy G., Nataly A."]
[Black "Mordido, Kylen Joy"]
[Result "0-1"]
[WhiteElo "1907"]
[BlackElo "2023"]
[Annotator "NA"]
[PlyCount "58"]
[EventDate "2022.??.??"]
[TimeControl "60"]

1. d4 {[%emt 0:00:09]} Nf6 {[%emt 0:00:32]} 2. Nf3 {[%emt 0:00:24]} g6 {
[%emt 0:00:53]} 3. c4 {[%emt 0:06:20]} c5 {[%emt 0:05:06]} 4. d5 {[%emt 0:00:
00]} b5 {[%emt 0:02:07]} 5. cxb5 {[%emt 0:00:08]} a6 {[%emt 0:01:18]} 6. b6 {
[%emt 0:00:58]} d6 {[%emt 0:02:15]} 7. Nc3 {[%emt 0:03:04]} Nbd7 {[%emt 0:00:
00]} 8. a4 {[%emt 0:01:08]} Nxb6 {[%emt 0:01:18]} 9. a5 {[%emt 0:01:28]} Nbd7 {
[%emt 0:00:42]} 10. e4 {[%emt 0:00:29]} Bg7 {[%emt 0:01:54]} 11. Be2 {[%emt 0:
00:00]} O-O {[%emt 0:02:05]} 12. O-O {[%emt 0:04:35]} Ne8 {[%emt 0:01:40]} 13.
Nd2 {[%emt 0:02:23]} Nc7 {[%emt 0:02:41]} 14. Qa4 {[%emt 0:07:51]} Rb8 {
[%emt 0:04:23]} 15. f4 {[%emt 0:20:33]} f5 {[%emt 0:06:42]} 16. Kh1 {[%emt 0:
00:00]} Nf6 {[%emt 0:02:39]} 17. Bc4 {[%emt 0:09:58]} Kh8 {[%emt 0:03:26]} 18.
Re1 {[%emt 0:04:01]} Nh5 {[%emt 0:07:22]} 19. g3 {[%emt 0:08:23]} fxe4 {
[%emt 0:14:29]} 20. Ndxe4 {[%emt 0:04:19]} Rb4 {[%emt 0:01:33]} 21. Qa2 {
[%emt 0:00:08]} Bb7 {[%emt 0:02:37]} 22. Bf1 {[%emt 0:02:38]} Qa8 {[%emt 0:00:
00]} 23. Rd1 {[%emt 0:04:29]} Rxe4 {[%emt 0:02:45]} 24. Nxe4 {[%emt 0:00:11]}
Nxd5 {[%emt 0:00:40]} 25. Bg2 {[%emt 0:00:36]} Ndxf4 {[%emt 0:00:38]} 26. gxf4
{[%emt 0:03:07]} Bxe4 {[%emt 0:00:14]} 27. Rg1 {[%emt 0:00:18]} Bd4 {[%emt 0:
00:00]} 28. b4 {[%emt 0:05:10]} Rf5 {[%emt 0:01:53]} 29. bxc5 {[%emt 0:02:18]}
Ng3+ {[%emt 0:00:36]} 0-1

[Event "44th Chess Olympiad Women 2022"]
[Site "Chennai"]
[Date "2022.08.05"]
[Round "7.28"]
[White "Ramirez, Maria Eugenia"]
[Black "Fronda, Jan Jodilyn"]
[Result "1/2-1/2"]
[WhiteElo "2005"]
[BlackElo "2181"]
[Annotator "NA RC"]
[PlyCount "112"]
[EventDate "2022.??.??"]
[TimeControl "60"]

1. e4 {[%emt 0:00:03]} c5 {[%emt 0:01:02]} 2. c3 {[%emt 0:05:13]} Nf6 {[%emt 0:
00:00]} 3. e5 {[%emt 0:00:07]} Nd5 {[%emt 0:00:13]} 4. g3 {[%emt 0:00:05]} e6 {
[%emt 0:00:58]} 5. Bg2 {[%emt 0:00:16]} d6 {[%emt 0:00:33]} 6. exd6 {[%emt 0:
00:00]} Bxd6 {[%emt 0:00:06]} 7. Nf3 {[%emt 0:00:26]} O-O {[%emt 0:00:26]} 8.
O-O {[%emt 0:00:21]} Nc6 {[%emt 0:00:27]} 9. d4 {[%emt 0:01:12]} cxd4 {[%emt 0:
00:00]} 10. Nxd4 {[%emt 0:00:08]} Nxd4 {[%emt 0:00:12]} 11. Qxd4 {[%emt 0:00:
00]} Qc7 {[%emt 0:00:18]} 12. Nd2 {[%emt 0:00:22]} Bd7 {[%emt 0:03:27]} 13. Qc4
{[%emt 0:07:38]} Bc6 {[%emt 0:04:19]} 14. Ne4 {[%emt 0:01:06]} Be5 {[%emt 0:00:
00]} 15. Re1 {[%emt 0:08:51]} h6 {[%emt 0:02:26]} 16. Qe2 {[%emt 0:02:18]} Rfd8
{[%emt 0:02:20]} 17. Bd2 {[%emt 0:16:34]} Rac8 {[%emt 0:07:32]} 18. Rac1 {
[%emt 0:04:38]} Qb6 {[%emt 0:04:14]} 19. b4 {[%emt 0:09:07]} Nf6 {[%emt 0:00:
00]} 20. Be3 {[%emt 0:03:06]} Qc7 {[%emt 0:02:21]} 21. Nxf6+ {[%emt 0:07:55]}
Bxf6 {[%emt 0:00:08]} 22. c4 {[%emt 0:03:43]} Bxg2 {[%emt 0:03:36]} 23. Kxg2 {
[%emt 0:00:07]} Qc6+ {[%emt 0:00:18]} 24. Qf3 {[%emt 0:00:54]} Qxf3+ {[%emt 0:
00:00]} 25. Kxf3 {[%emt 0:00:09]} Rd3 {[%emt 0:00:08]} 26. Rc2 {[%emt 0:08:14]}
Rc3 {[%emt 0:18:30]} 27. Rxc3 {[%emt 0:06:23]} Bxc3 {[%emt 0:00:07]} 28. Rc1 {
[%emt 0:00:34]} Bxb4 {[%emt 0:00:21]} 29. Bxa7 {[%emt 0:00:42]} Ra8 {[%emt 0:
00:00]} 30. Rb1 {[%emt 0:01:57]} Rxa7 {[%emt 0:00:18]} 31. Rxb4 {[%emt 0:00:06]
} Kf8 {[%emt 0:00:33]} 32. a4 {[%emt 0:02:46]} Ke7 {[%emt 0:00:07]} 33. Ke4 {
[%emt 0:00:31]} Kd6 {[%emt 0:00:42]} 34. Kd4 {[%emt 0:00:35]} Kc6 {[%emt 0:00:
00]} 35. h4 {[%emt 0:03:32]} Ra8 {[%emt 0:02:29]} 36. Kc3 {[%emt 0:00:29]} b6 {
[%emt 0:03:29]} 37. Kb3 {[%emt 0:04:20]} Rd8 {[%emt 0:14:41]} 38. Kc3 {[%emt 0:
00:00]} Ra8 {[%emt 0:02:37]} 39. Kb3 {[%emt 0:00:06]} Ra5 {[%emt 0:00:10]} 40.
Ka3 {[%emt 0:01:31]} Rf5 {[%emt 0:01:24]} 41. Rb2 {[%emt 0:31:46]} Kc5 {
[%emt 0:33:16]} 42. f4 {[%emt 0:00:00]} Kc6 {[%emt 0:00:00]} 43. Kb4 {[%emt 0:
00:00]} g5 {[%emt 0:00:00]} 44. fxg5 {[%emt 0:00:00]} hxg5 {[%emt 0:00:00]} 45.
h5 {[%emt 0:00:00]} Rf6 {[%emt 0:00:00]} 46. g4 {[%emt 0:00:00]} Rh6 {[%emt 0:
00:00]} 47. Rf2 {[%emt 0:00:00]} f5 {[%emt 0:00:00]} 48. gxf5 {[%emt 0:00:00]}
exf5 {[%emt 0:00:00]} 49. Rxf5 {[%emt 0:00:00]} Rxh5 {[%emt 0:00:00]} 50. Rf6+
{[%emt 0:00:00]} Kb7 {[%emt 0:00:00]} 51. Rg6 {[%emt 0:00:00]} Rh1 {[%emt 0:00:
00]} 52. Rxg5 {[%emt 0:00:00]} Rb1+ {[%emt 0:00:00]} 53. Kc3 {[%emt 0:00:00]}
Rc1+ {[%emt 0:00:00]} 54. Kb3 {[%emt 0:00:00]} Rb1+ {[%emt 0:00:00]} 55. Kc3 {
[%emt 0:00:00]} Rc1+ {[%emt 0:00:00]} 56. Kb3 {[%emt 0:00:00]} Kc7 {[%emt 0:00:
00]} 1/2-1/2

[Event "44th Chess Olympiad Women 2022"]
[Site "Chennai"]
[Date "2022.08.05"]
[Round "7.28"]
[White "San Diego, Marie Antoinette"]
[Black "Molina, Jessica"]
[Result "1-0"]
[WhiteElo "2101"]
[BlackElo "1889"]
[Annotator "NA RC"]
[PlyCount "96"]
[EventDate "2022.??.??"]
[TimeControl "60"]

1. d4 {[%emt 0:00:04]} Nf6 {[%emt 0:00:13]} 2. Nf3 {[%emt 0:00:12]} d5 {
[%emt 0:00:21]} 3. c4 {[%emt 0:00:09]} e6 {[%emt 0:00:13]} 4. Nc3 {[%emt 0:00:
00]} c6 {[%emt 0:00:06]} 5. Bg5 {[%emt 0:00:14]} Nbd7 {[%emt 0:00:13]} 6. Qc2 {
[%emt 0:00:10]} Qa5 {[%emt 0:00:29]} 7. Bd2 {[%emt 0:00:07]} Qd8 {[%emt 0:00:
00]} 8. e4 {[%emt 0:06:56]} dxe4 {[%emt 0:00:40]} 9. Nxe4 {[%emt 0:00:08]} Nxe4
{[%emt 0:00:27]} 10. Qxe4 {[%emt 0:00:09]} Nf6 {[%emt 0:00:06]} 11. Qc2 {
[%emt 0:06:19]} Be7 {[%emt 0:03:56]} 12. Bd3 {[%emt 0:03:16]} Bd7 {[%emt 0:00:
00]} 13. O-O {[%emt 0:01:33]} O-O {[%emt 0:02:54]} 14. Rad1 {[%emt 0:03:11]} b5
{[%emt 0:03:03]} 15. Ne5 {[%emt 0:05:06]} Rc8 {[%emt 0:04:16]} 16. c5 {[%emt 0:
00:00]} h6 {[%emt 0:05:08]} 17. Be3 {[%emt 0:12:40]} Be8 {[%emt 0:07:44]} 18.
Qd2 {[%emt 0:03:45]} Nd5 {[%emt 0:10:24]} 19. Bb1 {[%emt 0:17:38]} f5 {[%emt 0:
00:00]} 20. f4 {[%emt 0:03:17]} Rc7 {[%emt 0:12:04]} 21. g4 {[%emt 0:05:36]} g5
{[%emt 0:16:16]} 22. fxg5 {[%emt 0:05:37]} Bxg5 {[%emt 0:07:46]} 23. Bxg5 {
[%emt 0:01:06]} Qxg5 {[%emt 0:00:02]} 24. Qxg5+ {[%emt 0:06:40]} hxg5 {[%emt 0:
00:00]} 25. Rde1 {[%emt 0:00:49]} fxg4 {[%emt 0:06:27]} 26. Rxf8+ {[%emt 0:00:
00]} Kxf8 {[%emt 0:00:08]} 27. Nxg4 {[%emt 0:00:22]} Nf4 {[%emt 0:01:19]} 28.
Ne5 {[%emt 0:01:02]} Bh5 {[%emt 0:01:00]} 29. Kf2 {[%emt 0:01:25]} Kg7 {
[%emt 0:01:37]} 30. Be4 {[%emt 0:00:26]} Be8 {[%emt 0:00:48]} 31. Ke3 {[%emt 0:
00:00]} Nd5+ {[%emt 0:01:35]} 32. Bxd5 {[%emt 0:01:31]} exd5 {[%emt 0:00:02]}
33. Rg1 {[%emt 0:00:33]} Kf6 {[%emt 0:00:20]} 34. Rf1+ {[%emt 0:00:08]} Kg7 {
[%emt 0:00:15]} 35. Rf5 {[%emt 0:00:15]} Kh6 {[%emt 0:01:16]} 36. Rf6+ {
[%emt 0:00:27]} Kg7 {[%emt 0:00:44]} 37. Rf5 {[%emt 0:03:07]} Kh6 {[%emt 0:00:
00]} 38. Kf3 {[%emt 0:00:23]} a5 {[%emt 0:00:25]} 39. Rf6+ {[%emt 0:01:24]} Kg7
{[%emt 0:00:20]} 40. Re6 {[%emt 0:00:15]} Rc8 {[%emt 0:01:22]} 41. Kg4 {
[%emt 0:30:41]} Bf7 {[%emt 0:31:08]} 42. Re7 {[%emt 0:00:11]} Rf8 {[%emt 0:00:
00]} 43. Rxf7+ {[%emt 0:00:00]} Rxf7 {[%emt 0:00:00]} 44. Nxf7 {[%emt 0:00:00]}
Kxf7 {[%emt 0:00:00]} 45. Kxg5 {[%emt 0:00:00]} b4 {[%emt 0:00:00]} 46. b3 {
[%emt 0:00:00]} Kg7 {[%emt 0:00:00]} 47. h4 {[%emt 0:00:00]} Kf7 {[%emt 0:00:
00]} 48. Kf5 {[%emt 0:00:00]} Kg7 {[%emt 0:00:00]} 1-0

[Event "44th Chess Olympiad Women 2022"]
[Site "Chennai"]
[Date "2022.08.05"]
[Round "7.29"]
[White "Moaataz, Ayah"]
[Black "Penafiel Mendoza, Josselyne"]
[Result "1-0"]
[WhiteElo "2119"]
[BlackElo "1804"]
[Annotator "NA RC"]
[PlyCount "91"]
[EventDate "2022.??.??"]
[TimeControl "60"]

1. c4 {[%emt 0:00:03]} Nf6 {[%emt 0:00:17]} 2. g3 {[%emt 0:00:08]} g6 {[%emt 0:
00:00]} 3. Bg2 {[%emt 0:00:09]} Bg7 {[%emt 0:00:09]} 4. Nc3 {[%emt 0:00:04]} e5
{[%emt 0:00:17]} 5. d3 {[%emt 0:00:06]} O-O {[%emt 0:00:14]} 6. e4 {[%emt 0:00:
00]} d6 {[%emt 0:00:27]} 7. Nge2 {[%emt 0:00:08]} c6 {[%emt 0:00:18]} 8. O-O {
[%emt 0:00:24]} a6 {[%emt 0:00:03]} 9. a4 {[%emt 0:01:01]} a5 {[%emt 0:00:05]}
10. h3 {[%emt 0:00:53]} Na6 {[%emt 0:02:20]} 11. Be3 {[%emt 0:00:29]} Re8 {
[%emt 0:01:48]} 12. Qd2 {[%emt 0:02:25]} Nb4 {[%emt 0:29:30]} 13. d4 {[%emt 0:
00:00]} exd4 {[%emt 0:01:12]} 14. Nxd4 {[%emt 0:00:19]} Nd7 {[%emt 0:00:33]}
15. Rad1 {[%emt 0:14:04]} Ne5 {[%emt 0:02:14]} 16. Qe2 {[%emt 0:02:44]} Qe7 {
[%emt 0:13:27]} 17. Rd2 {[%emt 0:11:19]} b6 {[%emt 0:10:27]} 18. Rfd1 {[%emt 0:
00:00]} Ba6 {[%emt 0:01:09]} 19. b3 {[%emt 0:00:11]} Rad8 {[%emt 0:01:58]} 20.
Na2 {[%emt 0:14:50]} d5 {[%emt 0:03:36]} 21. Nxb4 {[%emt 0:06:09]} Qxb4 {
[%emt 0:08:56]} 22. exd5 {[%emt 0:02:44]} cxd5 {[%emt 0:01:04]} 23. Nb5 {
[%emt 0:00:49]} Bxb5 {[%emt 0:01:28]} 24. axb5 {[%emt 0:01:12]} d4 {[%emt 0:00:
00]} 25. Rxd4 {[%emt 0:03:34]} Rxd4 {[%emt 0:02:04]} 26. Bxd4 {[%emt 0:01:45]}
Qxb3 {[%emt 0:01:24]} 27. f4 {[%emt 0:02:06]} Qxc4 {[%emt 0:01:40]} 28. Qxc4 {
[%emt 0:03:04]} Nxc4 {[%emt 0:00:02]} 29. Bxg7 {[%emt 0:00:45]} Kxg7 {[%emt 0:
00:00]} 30. Rd7 {[%emt 0:00:34]} Ne3 {[%emt 0:04:26]} 31. Bc6 {[%emt 0:00:51]}
Rb8 {[%emt 0:07:07]} 32. Kf2 {[%emt 0:00:52]} Nc2 {[%emt 0:02:40]} 33. Bd5 {
[%emt 0:00:49]} Nb4 {[%emt 0:01:16]} 34. Bxf7 {[%emt 0:00:41]} Kh8 {[%emt 0:00:
00]} 35. Be6 {[%emt 0:01:26]} Re8 {[%emt 0:01:56]} 36. f5 {[%emt 0:00:35]} gxf5
{[%emt 0:01:07]} 37. Bxf5 {[%emt 0:00:04]} Rf8 {[%emt 0:00:04]} 38. g4 {
[%emt 0:00:08]} Kg8 {[%emt 0:00:16]} 39. Ke3 {[%emt 0:00:32]} h5 {[%emt 0:00:
00]} 40. Kd4 {[%emt 0:00:46]} hxg4 {[%emt 0:00:53]} 41. hxg4 {[%emt 0:30:09]}
Re8 {[%emt 0:01:30]} 42. Rb7 {[%emt 0:00:00]} Rd8+ {[%emt 0:02:58]} 43. Ke5 {
[%emt 0:00:00]} Rd5+ {[%emt 0:04:29]} 44. Kf6 {[%emt 0:00:00]} Rd8 {[%emt 0:00:
00]} 45. Be6+ {[%emt 0:00:00]} Kh8 {[%emt 0:00:47]} 46. Kg6 {[%emt 0:00:00]}
1-0

[Event "44th Chess Olympiad Women 2022"]
[Site "Chennai"]
[Date "2022.08.05"]
[Round "7.29"]
[White "Nunez Giler, Fanny"]
[Black "Elansary, Eman"]
[Result "0-1"]
[WhiteElo "1660"]
[BlackElo "1936"]
[Annotator "NA"]
[PlyCount "80"]
[EventDate "2022.??.??"]
[TimeControl "60"]

1. e4 {[%emt 0:00:20]} Nf6 {[%emt 0:00:14]} 2. e5 {[%emt 0:01:05]} Nd5 {
[%emt 0:00:05]} 3. c4 {[%emt 0:05:18]} Nb6 {[%emt 0:00:24]} 4. d4 {[%emt 0:00:
00]} d6 {[%emt 0:00:04]} 5. exd6 {[%emt 0:01:32]} cxd6 {[%emt 0:00:07]} 6. Nc3
{[%emt 0:00:05]} g6 {[%emt 0:01:12]} 7. Be3 {[%emt 0:00:33]} Bg7 {[%emt 0:00:
00]} 8. Rc1 {[%emt 0:00:12]} Nc6 {[%emt 0:00:25]} 9. b3 {[%emt 0:08:57]} O-O {
[%emt 0:01:25]} 10. Nf3 {[%emt 0:01:47]} Bg4 {[%emt 0:00:59]} 11. Be2 {[%emt 0:
00:00]} d5 {[%emt 0:01:42]} 12. c5 {[%emt 0:08:42]} Nc8 {[%emt 0:00:23]} 13.
O-O {[%emt 0:05:03]} e6 {[%emt 0:03:02]} 14. Qd2 {[%emt 0:16:49]} N8e7 {
[%emt 0:01:31]} 15. h3 {[%emt 0:04:22]} Bxf3 {[%emt 0:00:29]} 16. Bxf3 {
[%emt 0:00:05]} Nf5 {[%emt 0:00:26]} 17. Ne2 {[%emt 0:01:36]} Qd7 {[%emt 0:00:
00]} 18. Bg4 {[%emt 0:06:15]} Nxe3 {[%emt 0:04:44]} 19. fxe3 {[%emt 0:05:51]}
h5 {[%emt 0:06:39]} 20. Bf3 {[%emt 0:00:22]} Rad8 {[%emt 0:08:58]} 21. Nc3 {
[%emt 0:08:28]} a6 {[%emt 0:00:28]} 22. Na4 {[%emt 0:02:27]} Qe7 {[%emt 0:00:
00]} 23. Nb6 {[%emt 0:08:07]} Qg5 {[%emt 0:03:20]} 24. Qf2 {[%emt 0:04:39]} Bh6
{[%emt 0:04:10]} 25. Rc3 {[%emt 0:01:16]} h4 {[%emt 0:01:55]} 26. Bg4 {[%emt 0:
00:00]} f5 {[%emt 0:02:56]} 27. Bf3 {[%emt 0:00:26]} Bg7 {[%emt 0:03:24]} 28.
Rd3 {[%emt 0:00:47]} Qh6 {[%emt 0:06:47]} 29. Qe2 {[%emt 0:01:10]} g5 {[%emt 0:
00:00]} 30. Rfd1 {[%emt 0:00:31]} Bf6 {[%emt 0:04:31]} 31. Na4 {[%emt 0:00:50]}
Rf7 {[%emt 0:01:02]} 32. Nc3 {[%emt 0:00:37]} Kh8 {[%emt 0:01:58]} 33. g4 {
[%emt 0:00:08]} hxg3 {[%emt 0:00:26]} 34. Qg2 {[%emt 0:00:15]} Nb4 {[%emt 0:00:
00]} 35. Qxg3 {[%emt 0:02:16]} Nxd3 {[%emt 0:00:22]} 36. Rxd3 {[%emt 0:00:01]}
g4 {[%emt 0:00:48]} 37. Bg2 {[%emt 0:01:19]} Rg8 {[%emt 0:00:59]} 38. Kh2 {
[%emt 0:00:26]} Bd8 {[%emt 0:03:21]} 39. Ne2 {[%emt 0:00:21]} Rfg7 {[%emt 0:00:
00]} 40. Nf4 {[%emt 0:00:18]} Bh4 {[%emt 0:00:29]} 0-1

[Event "44th Chess Olympiad Women 2022"]
[Site "Chennai"]
[Date "2022.08.05"]
[Round "7.29"]
[White "Ortiz Verdezoto, Anahi"]
[Black "Mona, Khaled"]
[Result "1-0"]
[WhiteElo "2046"]
[BlackElo "2127"]
[Annotator "NA"]
[PlyCount "67"]
[EventDate "2022.??.??"]
[TimeControl "60"]

1. d4 {[%emt 0:00:12]} Nf6 {[%emt 0:00:14]} 2. c4 {[%emt 0:00:07]} g6 {[%emt 0:
00:00]} 3. Nc3 {[%emt 0:00:07]} Bg7 {[%emt 0:00:04]} 4. e4 {[%emt 0:00:04]} d6
{[%emt 0:00:03]} 5. h3 {[%emt 0:00:20]} Nc6 {[%emt 0:00:19]} 6. Nf3 {[%emt 0:
00:00]} O-O {[%emt 0:00:12]} 7. Be3 {[%emt 0:09:07]} h6 {[%emt 0:02:35]} 8. Qd2
{[%emt 0:02:51]} Kh7 {[%emt 0:00:07]} 9. g4 {[%emt 0:04:32]} e5 {[%emt 0:09:45]
} 10. d5 {[%emt 0:01:15]} Nb8 {[%emt 0:01:40]} 11. g5 {[%emt 0:05:44]} hxg5 {
[%emt 0:01:28]} 12. Nxg5+ {[%emt 0:08:26]} Kg8 {[%emt 0:00:08]} 13. Be2 {
[%emt 0:00:29]} c6 {[%emt 0:01:03]} 14. O-O-O {[%emt 0:02:25]} cxd5 {[%emt 0:
00:00]} 15. cxd5 {[%emt 0:06:25]} Na6 {[%emt 0:02:00]} 16. Rdg1 {[%emt 0:03:42]
} Ne8 {[%emt 0:09:38]} 17. h4 {[%emt 0:02:38]} f5 {[%emt 0:00:17]} 18. exf5 {
[%emt 0:00:05]} Bxf5 {[%emt 0:00:05]} 19. Ne6 {[%emt 0:08:07]} Qa5 {[%emt 0:00:
00]} 20. Nxf8 {[%emt 0:02:54]} Nb4 {[%emt 0:11:14]} 21. Nxg6 {[%emt 0:02:46]}
Nxa2+ {[%emt 0:00:39]} 22. Kd1 {[%emt 0:01:20]} Kf7 {[%emt 0:07:22]} 23. Bh5 {
[%emt 0:06:41]} Rc8 {[%emt 0:00:53]} 24. Nxe5+ {[%emt 0:04:13]} Ke7 {[%emt 0:
00:00]} 25. Rxg7+ {[%emt 0:03:16]} Nxg7 {[%emt 0:00:17]} 26. Bg5+ {[%emt 0:00:
00]} Kf8 {[%emt 0:00:28]} 27. Ng6+ {[%emt 0:07:03]} Kf7 {[%emt 0:03:59]} 28.
Ne7+ {[%emt 0:04:11]} Nxh5 {[%emt 0:00:23]} 29. Nxf5 {[%emt 0:00:01]} Nxc3+ {
[%emt 0:00:54]} 30. bxc3 {[%emt 0:00:05]} Rxc3 {[%emt 0:04:05]} 31. Be3 {
[%emt 0:04:43]} Qa4+ {[%emt 0:00:51]} 32. Ke1 {[%emt 0:01:46]} Rc2 {[%emt 0:00:
00]} 33. Qd4 {[%emt 0:03:44]} Qa3 {[%emt 0:11:36]} 34. Nh6+ {[%emt 0:00:40]}
1-0

[Event "44th Chess Olympiad Women 2022"]
[Site "Chennai"]
[Date "2022.08.05"]
[Round "7.29"]
[White "Wafa, Shrook"]
[Black "Heredia Serrano, Carla"]
[Result "0-1"]
[WhiteElo "2141"]
[BlackElo "2090"]
[Annotator "NA RC"]
[PlyCount "170"]
[EventDate "2022.??.??"]
[TimeControl "60"]

1. e4 {[%emt 0:00:05]} c6 {[%emt 0:00:09]} 2. d4 {[%emt 0:00:17]} d5 {[%emt 0:
00:00]} 3. Nc3 {[%emt 0:00:22]} dxe4 {[%emt 0:00:08]} 4. Nxe4 {[%emt 0:00:18]}
Nf6 {[%emt 0:00:16]} 5. Nxf6+ {[%emt 0:00:14]} exf6 {[%emt 0:00:05]} 6. Nf3 {
[%emt 0:02:53]} Bd6 {[%emt 0:00:53]} 7. Bd3 {[%emt 0:00:56]} O-O {[%emt 0:00:
00]} 8. Be3 {[%emt 0:00:47]} Re8 {[%emt 0:15:04]} 9. Qd2 {[%emt 0:04:09]} Nd7 {
[%emt 0:05:47]} 10. O-O-O {[%emt 0:05:36]} b5 {[%emt 0:05:34]} 11. d5 {[%emt 0:
00:00]} c5 {[%emt 0:00:43]} 12. Bxb5 {[%emt 0:00:40]} Rb8 {[%emt 0:05:00]} 13.
Bd3 {[%emt 0:07:00]} Nb6 {[%emt 0:08:36]} 14. c4 {[%emt 0:08:11]} Qc7 {[%emt 0:
00:00]} 15. Qc2 {[%emt 0:09:03]} h6 {[%emt 0:07:18]} 16. h3 {[%emt 0:05:01]}
Bd7 {[%emt 0:03:56]} 17. Rhe1 {[%emt 0:02:33]} Qb7 {[%emt 0:03:45]} 18. Bd2 {
[%emt 0:04:30]} Rec8 {[%emt 0:00:30]} 19. Re2 {[%emt 0:06:22]} Na4 {[%emt 0:00:
00]} 20. b3 {[%emt 0:04:52]} Nb6 {[%emt 0:01:43]} 21. Nh4 {[%emt 0:02:00]} Ra8
{[%emt 0:10:36]} 22. Bf5 {[%emt 0:05:01]} a5 {[%emt 0:02:12]} 23. Bxd7 {
[%emt 0:00:20]} Qxd7 {[%emt 0:00:11]} 24. a4 {[%emt 0:00:45]} Rcb8 {[%emt 0:00:
00]} 25. Nf5 {[%emt 0:01:06]} Nc8 {[%emt 0:01:11]} 26. Rde1 {[%emt 0:01:09]}
Nb6 {[%emt 0:00:44]} 27. Nxd6 {[%emt 0:01:59]} Qxd6 {[%emt 0:00:03]} 28. g3 {
[%emt 0:00:18]} Nd7 {[%emt 0:00:54]} 29. Bf4 {[%emt 0:00:31]} Ne5 {[%emt 0:00:
00]} 30. Bxe5 {[%emt 0:00:18]} fxe5 {[%emt 0:00:03]} 31. Rxe5 {[%emt 0:00:16]}
Qf6 {[%emt 0:00:48]} 32. R1e3 {[%emt 0:00:46]} g6 {[%emt 0:00:36]} 33. f4 {
[%emt 0:01:43]} Rb4 {[%emt 0:01:02]} 34. Qe4 {[%emt 0:01:20]} Kg7 {[%emt 0:00:
00]} 35. Kc2 {[%emt 0:01:25]} Rab8 {[%emt 0:00:17]} 36. Re7 {[%emt 0:02:15]}
Rxa4 {[%emt 0:00:35]} 37. Qe5 {[%emt 0:01:05]} Ra2+ {[%emt 0:00:38]} 38. Kc3 {
[%emt 0:03:22]} a4 {[%emt 0:00:33]} 39. bxa4 {[%emt 0:01:20]} Ra3+ {[%emt 0:00:
00]} 40. Kc2 {[%emt 0:01:26]} Ra2+ {[%emt 0:00:19]} 41. Kd3 {[%emt 0:31:01]}
Rb3+ {[%emt 0:14:08]} 42. Ke4 {[%emt 0:00:00]} Rxe3+ {[%emt 0:01:34]} 43. Kxe3
{[%emt 0:00:00]} Ra3+ {[%emt 0:02:10]} 44. Kd2 {[%emt 0:00:00]} Rxa4 {[%emt 0:
00:00]} 45. Kc3 {[%emt 0:00:00]} Ra3+ {[%emt 0:00:26]} 46. Kc2 {[%emt 0:00:00]}
Rxg3 {[%emt 0:07:08]} 47. d6 {[%emt 0:00:00]} Rg2+ {[%emt 0:00:18]} 48. Kd3 {
[%emt 0:00:00]} Rg1 {[%emt 0:02:31]} 49. d7 {[%emt 0:00:00]} Rd1+ {[%emt 0:00:
00]} 50. Ke2 {[%emt 0:00:00]} Rd4 {[%emt 0:01:22]} 51. h4 {[%emt 0:00:00]} Rd6
{[%emt 0:00:55]} 52. Kf3 {[%emt 0:02:30]} Rd3+ {[%emt 0:00:16]} 53. Ke4 {
[%emt 0:00:43]} Rd4+ {[%emt 0:00:45]} 54. Ke3 {[%emt 0:00:09]} Rd1 {[%emt 0:00:
00]} 55. Ke2 {[%emt 0:01:10]} Rd6 {[%emt 0:00:32]} 56. Re8 {[%emt 0:01:43]}
Qxe5+ {[%emt 0:00:04]} 57. Rxe5 {[%emt 0:00:04]} Rxd7 {[%emt 0:00:03]} 58. Rxc5
{[%emt 0:00:06]} Kf6 {[%emt 0:00:49]} 59. Ke3 {[%emt 0:00:42]} Rd1 {[%emt 0:00:
00]} 60. Rd5 {[%emt 0:01:10]} Rxd5 {[%emt 0:00:29]} 61. cxd5 {[%emt 0:00:07]}
Ke7 {[%emt 0:00:18]} 62. Ke4 {[%emt 0:00:45]} Kd6 {[%emt 0:00:17]} 63. Kd4 {
[%emt 0:00:18]} f6 {[%emt 0:00:53]} 64. Ke4 {[%emt 0:00:33]} Kc5 {[%emt 0:00:
00]} 65. d6 {[%emt 0:02:48]} Kxd6 {[%emt 0:00:07]} 66. Kd4 {[%emt 0:00:06]} Ke6
{[%emt 0:00:29]} 67. Ke4 {[%emt 0:00:09]} Kd6 {[%emt 0:00:10]} 68. Kd4 {
[%emt 0:00:13]} Ke6 {[%emt 0:01:16]} 69. Ke4 {[%emt 0:00:12]} Ke7 {[%emt 0:00:
00]} 70. Ke3 {[%emt 0:00:44]} Kd7 {[%emt 0:00:28]} 71. Kd3 {[%emt 0:00:20]} Kc6
{[%emt 0:00:23]} 72. Kc4 {[%emt 0:00:17]} h5 {[%emt 0:00:48]} 73. Kd4 {[%emt 0:
00:00]} Kd6 {[%emt 0:00:05]} 74. Ke4 {[%emt 0:00:25]} Ke6 {[%emt 0:00:02]} 75.
f5+ {[%emt 0:02:10]} gxf5+ {[%emt 0:00:37]} 76. Kf4 {[%emt 0:00:02]} Ke7 {
[%emt 0:00:38]} 77. Kxf5 {[%emt 0:00:05]} Kf7 {[%emt 0:00:04]} 78. Ke4 {
[%emt 0:00:11]} Ke6 {[%emt 0:00:25]} 79. Kf4 {[%emt 0:00:08]} f5 {[%emt 0:00:
00]} 80. Kg5 {[%emt 0:00:15]} Ke5 {[%emt 0:00:52]} 81. Kxh5 {[%emt 0:00:15]}
Kf6 {[%emt 0:01:22]} 82. Kh6 {[%emt 0:00:08]} f4 {[%emt 0:00:00]} 83. h5 {
[%emt 0:00:11]} f3 {[%emt 0:00:07]} 84. Kh7 {[%emt 0:00:04]} f2 {[%emt 0:00:08]
} 85. h6 {[%emt 0:00:05]} f1=Q {[%emt 0:00:05]} 0-1